lending/lending_fUSD_20240621
["ID","MTS","AMOUNT","RATE_DAILY","PERIOD"]
[330038770,1718956782868,-649.31,0.00044383,120]
[330038771,1718956782915,-500.0,0.00044383,120]
[330038772,1718956782957,-521.07,0.00044383,120]
[330038773,1718956783007,-654.5,0.00044383,120]
[330038774,1718956783055,-623.67,0.00044383,120]
[330038775,1718956783099,-824.84,0.00044383,120]
[330038776,1718956783144,-1136.63,0.00044383,120]
[330038777,1718956783185,-500.0,0.00044383,120]
[330038778,1718956783224,-500.0,0.00044383,120]
[330038779,1718956783267,-500.0,0.00044383,120]
[330038780,1718956783308,-576.54,0.00044383,120]
[330038781,1718956783347,-1053.39,0.00044383,120]
[330038782,1718956783386,-694.25,0.00044383,120]
[330038783,1718956783425,-500.0,0.00044383,120]
[330038784,1718956783462,-500.0,0.00044383,120]
[330038785,1718956783501,-340.21697563,0.00044383,120]
[330038786,1718956783540,-547.56,0.00044383,120]
[330038787,1718956783580,-500.0,0.00044383,120]
[330038788,1718956783621,-598.88,0.00044383,120]
[330038789,1718956783662,-500.0,0.00044383,120]
[330038790,1718956783697,-1091.37,0.00044383,120]
[330038791,1718956783735,-608.99,0.00044383,120]
[330038792,1718956783775,-503.01,0.00044383,120]
[330038793,1718956783814,-500.0,0.00044383,120]
[330038794,1718956783851,-535.03,0.00044383,120]
[330038795,1718956783893,-751.31,0.00044383,120]
[330038796,1718956783931,-500.0,0.00044383,120]
[330038797,1718956783970,-311.30793584,0.00044383,120]
[330038798,1718956784008,-523.08,0.00044383,120]
[330038799,1718956784046,-1029.71,0.00044383,120]
[330038800,1718956784084,-500.0,0.00044383,120]
[330038801,1718956784121,-521.08,0.00044383,120]
[330038802,1718956784157,-500.0,0.00044383,120]
[330038803,1718956784196,-796.24,0.00044383,120]
[330038804,1718956784233,-577.45,0.00044383,120]
[330038805,1718956784273,-500.0,0.00044383,120]
[330038806,1718956784313,-631.09,0.00044383,120]
[330038807,1718956784351,-813.4,0.00044383,120]
[330038808,1718956784388,-798.17,0.00044383,120]
[330038809,1718956785180,-947.26,0.00044383,120]
[330038810,1718956785258,-664.08,0.00044383,120]
[330038811,1718956785294,-500.0,0.00044383,120]
[330038812,1718956785333,-2083.15,0.00044383,120]
[330038813,1718956785370,-500.0,0.00044383,120]
[330038814,1718956785414,-500.0,0.00044383,120]
[330038815,1718956785448,-568.87,0.00044383,120]
[330038816,1718956785482,-913.33,0.00044383,120]
[330038817,1718956785514,-542.93,0.00044383,120]
[330038818,1718956785547,-500.0,0.00044383,120]
[330038819,1718956785579,-904.22,0.00044383,120]
[330038820,1718956785611,-1725.1,0.00044383,120]
[330038821,1718956785643,-500.0,0.00044383,120]
[330038822,1718956785676,-500.0,0.00044383,120]
[330038823,1718956785708,-1266.6,0.00044383,120]
[330038824,1718956785740,-679.53,0.00044383,120]
[330038825,1718956785774,-1634.34,0.00044383,120]
[330038826,1718956785806,-500.0,0.00044383,120]
[330038827,1718956785840,-1195.59,0.00044383,120]
[330038828,1718956785877,-1276.61,0.00044383,120]
[330038829,1718956785911,-542.12,0.00044383,120]
[330038830,1718956785949,-500.0,0.00044383,120]
[330038831,1718956785983,-500.0,0.00044383,120]
[330038832,1718956786019,-500.0,0.00044383,120]
[330038833,1718956786055,-648.64,0.00044383,120]
[330038834,1718956786087,-583.6,0.00044383,120]
[330038835,1718956786119,-524.1,0.00044383,120]
[330038836,1718956786152,-1891.87,0.00044383,120]
[330038837,1718956786186,-869.31,0.00044383,120]
[330038838,1718956786218,-979.44,0.00044383,120]
[330038839,1718956786252,-2188.81,0.00044383,120]
[330038840,1718956786287,-500.0,0.00044383,120]
[330038841,1718956786320,-642.81,0.00044383,120]
[330038842,1718956786354,-500.0,0.00044383,120]
[330038843,1718956786386,-500.0,0.00044383,120]
[330038844,1718956786419,-1990.64,0.00044383,120]
[330038845,1718956786452,-500.0,0.00044383,120]
[330038846,1718956786486,-500.0,0.00044383,120]
[330038847,1718956786522,-500.0,0.00044383,120]
[330038848,1718956786560,-618.15,0.00044383,120]
[330038849,1718956786602,-1644.48,0.00044383,120]
[330038850,1718956786638,-500.0,0.00044383,120]
[330038851,1718956786674,-1081.88,0.00044383,120]
[330038852,1718956786708,-500.0,0.00044383,120]
[330038853,1718956786743,-500.0,0.00044383,120]
[330038854,1718956786777,-1130.5,0.00044383,120]
[330038855,1718956786811,-2370.45,0.00044383,120]
[330038856,1718956786843,-862.92,0.00044383,120]
[330038857,1718956786882,-500.0,0.00044383,120]
[330038858,1718956786915,-912.28,0.00044383,120]
[330038859,1718956786948,-855.26,0.00044383,120]
[330038860,1718956786983,-500.0,0.00044383,120]
[330038861,1718956787018,-947.23,0.00044383,120]
[330038862,1718956787058,-774.42,0.00044383,120]
[330038863,1718956787092,-1081.69,0.00044383,120]
[330038864,1718956787125,-1073.21,0.00044383,120]
[330038865,1718956787160,-500.0,0.00044383,120]
[330038866,1718956787193,-500.0,0.00044383,120]
[330038867,1718956787228,-627.26,0.00044383,120]
[330038868,1718956787264,-1329.19,0.00044383,120]
[330038869,1718956787300,-500.0,0.00044383,120]
[330038870,1718956787336,-500.0,0.00044383,120]
[330038871,1718956787371,-500.0,0.00044383,120]
[330038872,1718956787410,-1066.12,0.00044383,120]
[330038873,1718956787451,-774.59,0.00044383,120]
[330038874,1718956787488,-500.0,0.00044383,120]
[330038875,1718956787527,-589.67848555,0.00044383,120]
[330038876,1718956787571,-500.0,0.00044383,120]
[330038877,1718956787611,-295.53884013,0.00044383,120]
[330038878,1718956787647,-885.68,0.00044383,120]
[330038879,1718956787688,-497.7269295,0.00044383,120]
[330038880,1718956787726,-500.0,0.00044383,120]
[330038881,1718956787768,-838.21,0.00044383,120]
[330038882,1718956787808,-500.0,0.00044383,120]
[330038883,1718956787847,-1218.16,0.00044383,120]
[330038884,1718956787892,-500.0,0.00044383,120]
[330038885,1718956787935,-950.19,0.00044383,120]
[330038886,1718956787975,-697.69,0.00044383,120]
[330038887,1718956788014,-500.0,0.00044383,120]
[330038888,1718956788054,-500.0,0.00044383,120]
[330038889,1718956788093,-500.0,0.00044383,120]
[330038890,1718956788131,-500.0,0.00044383,120]
[330038891,1718956788170,-985.84,0.00044383,120]
[330038892,1718956788208,-250.0,0.00044383,120]
[330038893,1718956788247,-500.0,0.00044383,120]
[330038894,1718956788287,-1888.63,0.00044383,120]
[330038895,1718956788329,-710.95,0.00044383,120]
[330038896,1718956788371,-500.0,0.00044383,120]
[330038897,1718956788417,-707.0,0.00044383,120]
[330038898,1718956788457,-3042.3,0.00044383,120]
[330038899,1718956788495,-500.0,0.00044383,120]
[330038900,1718956788536,-725.5,0.00044383,120]
[330038901,1718956788578,-967.38,0.00044383,120]
[330038902,1718956788619,-781.3,0.00044383,120]
[330038903,1718956788664,-500.0,0.00044383,120]
[330038904,1718956788702,-626.45,0.00044383,120]
[330038905,1718956788738,-572.6,0.00044383,120]
[330038906,1718956788774,-1748.28,0.00044383,120]
[330038907,1718956788810,-500.0,0.00044383,120]
[330038908,1718956788846,-500.0,0.00044383,120]
[330038909,1718956788883,-931.79,0.00044383,120]
[330038910,1718956788923,-866.81,0.00044383,120]
[330038911,1718956789140,-520.05,0.00044383,120]
[330038912,1718956789183,-1315.17,0.00044383,120]
[330038913,1718956789222,-1759.65,0.00044383,120]
[330038914,1718956789259,-500.0,0.00044383,120]
[330038915,1718956789296,-864.34,0.00044383,120]
[330038916,1718956789332,-1968.37,0.00044383,120]
[330038917,1718956789372,-572.29,0.00044383,120]
[330038918,1718956789411,-1120.37,0.00044383,120]
[330038919,1718956789446,-514.17,0.00044383,120]
[330038920,1718956789482,-705.81,0.00044383,120]
[330038921,1718956789518,-500.0,0.00044383,120]
[330038922,1718956789553,-500.0,0.00044383,120]
[330038923,1718956789589,-500.0,0.00044383,120]
[330038924,1718956789624,-500.0,0.00044383,120]
[330038925,1718956789664,-1558.75,0.00044383,120]
[330038926,1718956789699,-625.32,0.00044383,120]
[330038927,1718956789734,-500.0,0.00044383,120]
[330038928,1718956789770,-3050.92,0.00044383,120]
[330038929,1718956789805,-1747.68,0.00044383,120]
[330038930,1718956789841,-2360.82,0.00044383,120]
[330038931,1718956789878,-500.0,0.00044383,120]
[330038932,1718956789916,-500.0,0.00044383,120]
[330038933,1718956789953,-1620.74,0.00044383,120]
[330038934,1718956789991,-500.0,0.00044383,120]
[330038935,1718956790028,-2733.95,0.00044383,120]
[330038936,1718956790063,-500.0,0.00044383,120]
[330038937,1718956790098,-770.73,0.00044383,120]
[330038938,1718956790134,-500.0,0.00044383,120]
[330038939,1718956790171,-1051.1,0.00044383,120]
[330038940,1718956790207,-500.0,0.00044383,120]
[330038941,1718956790243,-500.0,0.00044383,120]
[330038942,1718956790282,-500.0,0.00044383,120]
[330038943,1718956790322,-970.33,0.00044383,120]
[330038944,1718956790359,-617.18,0.00044383,120]
[330038945,1718956790395,-500.0,0.00044383,120]
[330038946,1718956790437,-1509.47,0.00044383,120]
[330038947,1718956790492,-1588.68,0.00044383,120]
[330038948,1718956790539,-500.0,0.00044383,120]
[330038949,1718956790581,-500.0,0.00044383,120]
[330038950,1718956790620,-664.31,0.00044383,120]
[330038951,1718956790663,-500.0,0.00044383,120]
[330038952,1718956790701,-500.0,0.00044383,120]
[330038953,1718956790740,-688.95,0.00044383,120]
[330038954,1718956790780,-1441.36,0.00044383,120]
[330038955,1718956790821,-1460.58,0.00044383,120]
[330038956,1718956790861,-1346.01,0.00044383,120]
[330038957,1718956790912,-500.0,0.00044383,120]
[330038958,1718956790959,-500.0,0.00044383,120]
[330038959,1718956791003,-500.0,0.00044383,120]
[330038960,1718956791046,-500.0,0.00044383,120]
[330038961,1718956791089,-500.0,0.00044383,120]
[330038962,1718956791132,-525.69,0.00044383,120]
[330038963,1718956791172,-2111.76,0.00044383,120]
[330038964,1718956791214,-726.65,0.00044383,120]
[330038965,1718956791257,-839.74,0.00044383,120]
[330038966,1718956791298,-500.0,0.00044383,120]
[330038967,1718956791343,-1296.32,0.00044383,120]
[330038968,1718956791384,-2023.83,0.00044383,120]
[330038969,1718956791432,-964.89,0.00044383,120]
[330038970,1718956791479,-500.0,0.00044383,120]
[330038971,1718956791520,-500.0,0.00044383,120]
[330038972,1718956791562,-208.38807274,0.00044383,120]
[330038973,1718956791612,-558.32,0.00044383,120]
[330038974,1718956791655,-692.7,0.00044383,120]
[330038975,1718956791702,-1466.59,0.00044383,120]
[330038976,1718956791749,-995.34,0.00044383,120]
[330038977,1718956791797,-1769.9,0.00044383,120]
[330038978,1718956791844,-500.0,0.00044383,120]
[330038979,1718956791890,-1640.68,0.00044383,120]
[330038980,1718956791936,-467.88073104,0.00044383,120]
[330038981,1718956791980,-500.0,0.00044383,120]
[330038982,1718956792024,-500.0,0.00044383,120]
[330038983,1718956792063,-2592.71,0.00044383,120]
[330038984,1718956792101,-523.15,0.00044383,120]
[330038985,1718956792139,-557.96,0.00044383,120]
[330038986,1718956792176,-1316.85,0.00044383,120]
[330038987,1718956792216,-399.65310953,0.00044383,120]
[330038988,1718956792256,-1287.84,0.00044383,120]
[330038989,1718956792293,-2058.4,0.00044383,120]
[330038990,1718956792330,-500.0,0.00044383,120]
[330038991,1718956792368,-689.75,0.00044383,120]
[330038992,1718956792410,-500.0,0.00044383,120]
[330038993,1718956792456,-682.56,0.00044383,120]
[330038994,1718956792502,-1435.98,0.00044383,120]
[330038995,1718956792542,-1044.29,0.00044383,120]
[330038996,1718956792581,-1609.7,0.00044383,120]
[330038997,1718956792620,-1129.79,0.00044383,120]
[330038998,1718956792661,-500.0,0.00044383,120]
[330038999,1718956792704,-1100.01,0.00044383,120]
[330039000,1718956792749,-657.7,0.00044383,120]
[330039001,1718956792793,-1090.44,0.00044383,120]
[330039002,1718956792831,-548.63,0.00044383,120]
[330039003,1718956792869,-723.87,0.00044383,120]
[330039004,1718956792915,-500.0,0.00044383,120]
[330039005,1718956792957,-1418.84,0.00044383,120]
[330039006,1718956792994,-964.53,0.00044383,120]
[330039007,1718956793029,-925.44,0.00044383,120]
[330039008,1718956793063,-1219.64,0.00044383,120]
[330039009,1718956793096,-503.07,0.00044383,120]
[330039010,1718956793129,-935.33,0.00044383,120]
[330039011,1718956793164,-519.15,0.00044383,120]
[330039012,1718956793197,-2270.49,0.00044383,120]
[330039013,1718956793231,-500.0,0.00044383,120]
[330039014,1718956793266,-870.03,0.00044383,120]
[330039015,1718956793301,-548.39,0.00044383,120]
[330039016,1718956793615,-500.0,0.00044383,120]
[330039017,1718956793656,-771.08,0.00044383,120]
[330039018,1718956793694,-500.0,0.00044383,120]
[330039019,1718956793730,-500.0,0.00044383,120]
[330039020,1718956793766,-500.0,0.00044383,120]
[330039021,1718956793800,-500.0,0.00044383,120]
[330039022,1718956793838,-526.54,0.00044383,120]
[330039023,1718956793874,-500.0,0.00044383,120]
[330039024,1718956793910,-500.0,0.00044383,120]
[330039025,1718956793950,-1852.58,0.00044383,120]
[330039026,1718956793984,-981.43,0.00044383,120]
[330039027,1718956794018,-803.22,0.00044383,120]
[330039028,1718956794052,-670.74,0.00044383,120]
[330039029,1718956794085,-500.0,0.00044383,120]
[330039030,1718956794119,-2094.09,0.00044383,120]
[330039031,1718956794154,-2411.64,0.00044383,120]
[330039032,1718956794193,-787.77,0.00044383,120]
[330039033,1718956794229,-625.32,0.00044383,120]
[330039034,1718956794265,-1266.16,0.00044383,120]
[330039035,1718956794304,-500.0,0.00044383,120]
[330039036,1718956794342,-500.0,0.00044383,120]
[330039037,1718956794381,-2772.43,0.00044383,120]
[330039038,1718956794422,-500.0,0.00044383,120]
[330039039,1718956794462,-1109.59,0.00044383,120]
[330039040,1718956794503,-1313.17,0.00044383,120]
[330039041,1718956794541,-500.0,0.00044383,120]
[330039042,1718956794580,-523.74,0.00044383,120]
[330039043,1718956794618,-500.0,0.00044383,120]
[330039044,1718956794655,-521.03,0.00044383,120]
[330039045,1718956794699,-500.0,0.00044383,120]
[330039046,1718956794738,-500.0,0.00044383,120]
[330039047,1718956794774,-851.12,0.00044383,120]
[330039048,1718956794811,-716.39,0.00044383,120]
[330039049,1718956794846,-704.67,0.00044383,120]
[330039050,1718956794884,-500.0,0.00044383,120]
[330039051,1718956794921,-167.29976472,0.00044383,120]
[330039052,1718956794956,-565.47,0.00044383,120]
[330039053,1718956794994,-500.0,0.00044383,120]
[330039054,1718956795029,-650.36,0.00044383,120]
[330039055,1718956795064,-500.0,0.00044383,120]
[330039056,1718956795100,-1835.83,0.00044383,120]
[330039057,1718956795135,-500.0,0.00044383,120]
[330039058,1718956795171,-1258.37,0.00044383,120]
[330039059,1718956795207,-500.0,0.00044383,120]
[330039060,1718956795244,-3398.89,0.00044383,120]
[330039061,1718956795283,-596.32,0.00044383,120]
[330039062,1718956795320,-755.86,0.00044383,120]
[330039063,1718956795356,-711.69,0.00044383,120]
[330039064,1718956795393,-500.0,0.00044383,120]
[330039065,1718956795429,-500.0,0.00044383,120]
[330039066,1718956795467,-500.75,0.00044383,120]
[330039067,1718956795504,-500.0,0.00044383,120]
[330039068,1718956795541,-500.0,0.00044383,120]
[330039069,1718956795578,-500.29,0.00044383,120]
[330039070,1718956795614,-5938.09,0.00044383,120]
[330039071,1718956795651,-1989.29,0.00044383,120]
[330039072,1718956795690,-772.45,0.00044383,120]
[330039073,1718956795728,-580.69,0.00044383,120]
[330039074,1718956795766,-500.0,0.00044383,120]
[330039075,1718956795802,-796.56,0.00044383,120]
[330039076,1718956795839,-569.37,0.00044383,120]
[330039077,1718956795877,-1290.44,0.00044383,120]
[330039078,1718956795922,-500.0,0.00044383,120]
[330039079,1718956795962,-500.0,0.00044383,120]
[330039080,1718956796000,-507.21591949,0.00044383,120]
[330039081,1718956796036,-19890.01,0.00044383,120]
[330039082,1718956796071,-1802.42,0.00044383,120]
[330039083,1718956796108,-1199.39,0.00044383,120]
[330039084,1718956796144,-1095.41,0.00044383,120]
[330039085,1718956796179,-500.0,0.00044383,120]
[330039086,1718956796214,-909.98,0.00044383,120]
[330039087,1718956796250,-500.0,0.00044383,120]
[330039088,1718956796292,-726.97,0.00044383,120]
[330039089,1718956796327,-1482.72,0.00044383,120]
[330039090,1718956796361,-500.0,0.00044383,120]
[330039091,1718956796396,-1088.54,0.00044383,120]
[330039092,1718956796430,-1792.94,0.00044383,120]
[330039093,1718956796466,-500.0,0.00044383,120]
[330039094,1718956796499,-500.0,0.00044383,120]
[330039095,1718956796534,-567.41,0.00044383,120]
[330039096,1718956796576,-500.0,0.00044383,120]
[330039097,1718956796616,-500.0,0.00044383,120]
[330039098,1718956796650,-500.0,0.00044383,120]
[330039099,1718956796684,-875.06,0.00044383,120]
[330039100,1718956796718,-9972.12,0.00044383,120]
[330039101,1718956796753,-950.18,0.00044383,120]
[330039102,1718956796786,-521.14,0.00044383,120]
[330039103,1718956796819,-500.0,0.00044383,120]
[330039104,1718956796852,-641.38,0.00044383,120]
[330039105,1718956796891,-1935.68,0.00044383,120]
[330039106,1718956796928,-500.0,0.00044383,120]
[330039107,1718956796964,-500.0,0.00044383,120]
[330039108,1718956796999,-2334.13,0.00044383,120]
[330039109,1718956797048,-500.0,0.00044383,120]
[330039110,1718956797086,-4482.79,0.00044383,120]
[330039111,1718956797123,-2197.87,0.00044383,120]
[330039112,1718956797160,-4122.53,0.00044383,120]
[330039113,1718956797200,-500.0,0.00044383,120]
[330039114,1718956797237,-794.1,0.00044383,120]
[330039115,1718956797274,-635.64,0.00044383,120]
[330039116,1718956797312,-772.81,0.00044383,120]
[330039117,1718956797351,-500.0,0.00044383,120]
[330039118,1718956797390,-1348.31,0.00044383,120]
[330039119,1718956797428,-500.0,0.00044383,120]
[330039120,1718956797716,-2781.32,0.00044383,120]
[330039121,1718956797752,-500.0,0.00044383,120]
[330039122,1718956797788,-504.37,0.00044383,120]
[330039123,1718956797823,-8234.15,0.00044383,120]
[330039124,1718956797861,-500.0,0.00044383,120]
[330039125,1718956797899,-2391.95,0.00044383,90]
[330039126,1718956797942,-6937.24,0.00044383,120]
[330039127,1718956797981,-49917.86,0.00044383,120]
[330039128,1718956798018,-17491.67,0.00044383,120]
[330039129,1718956798056,-2777.17,0.00044383,120]
[330039130,1718956798091,-500.0,0.00044383,120]
[330039131,1718956798127,-783.62,0.00044383,120]
[330039132,1718956798163,-514.42209616,0.00044383,120]
[330039133,1718956798202,-500.0,0.00044383,120]
[330039134,1718956798238,-4818.53,0.00044383,120]
[330039135,1718956798275,-8438.67,0.00044383,120]
[330039136,1718956798311,-43739.07,0.00044383,120]
[330039137,1718956798348,-836.33,0.00044383,120]
[330039138,1718956798385,-500.0,0.00044383,120]
[330039139,1718956798421,-2903.94,0.00044383,120]
[330039140,1718956798460,-1204.23,0.00044383,120]
[330039141,1718956798497,-500.0,0.00044383,120]
[330039142,1718956798541,-2526.12,0.00044383,120]
[330039143,1718956798579,-1622.38,0.00044383,120]
[330039144,1718956798616,-500.0,0.00044383,120]
[330039145,1718956798654,-1431.41,0.00044383,120]
[330039146,1718956798695,-3830.5,0.00044383,120]
[330039147,1718956798732,-1229.3,0.00044383,120]
[330039148,1718956798770,-500.0,0.00044383,120]
[330039149,1718956798806,-2329.91,0.00044383,120]
[330039150,1718956798842,-1196.69,0.00044383,120]
[330039151,1718956798882,-601.28,0.00044383,120]
[330039152,1718956798924,-859.04,0.00044383,120]
[330039153,1718956798962,-1891.84,0.00044383,120]
[330039154,1718956799002,-287.39,0.00044384,120]
[330039155,1718956799042,-151.0,0.00044493,120]
[330039156,1718956799079,-2500.0,0.000445,120]
[330039157,1718956799117,-150.0,0.0004454,120]
[330039158,1718956799153,-500.0,0.00044657,120]
[330039159,1718956799190,-612.03,0.00044657,120]
[330039160,1718956799227,-500.0,0.00044657,120]
[330039161,1718956799264,-532.60542342,0.00044657,120]
[330039162,1718956799300,-627.34,0.00044657,120]
[330039163,1718956799337,-587.05,0.00044657,120]
[330039164,1718956799374,-500.0,0.00044657,120]
[330039165,1718956799411,-500.0,0.00044657,120]
[330039166,1718956799451,-1146.89,0.00044657,120]
[330039167,1718956799489,-500.0,0.00044657,120]
[330039168,1718956799525,-1059.37,0.00044657,120]
[330039169,1718956799562,-508.55634484,0.00044657,120]
[330039170,1718956799599,-811.24,0.00044657,120]
[330039171,1718956799635,-946.4,0.00044657,120]
[330039172,1718956799674,-502.76,0.00044657,120]
[330039173,1718956799711,-699.11,0.00044657,120]
[330039174,1718956799747,-554.1,0.00044657,120]
[330039175,1718956799784,-709.95,0.00044657,120]
[330039176,1718956799822,-1217.96,0.00044657,120]
[330039177,1718956799859,-500.0,0.00044657,120]
[330039178,1718956799900,-500.0,0.00044657,120]
[330039179,1718956799945,-500.0,0.00044657,120]
[330039180,1718956799986,-500.0,0.00044657,120]
[330039181,1718956800027,-500.0,0.00044657,120]
[330039182,1718956800069,-619.67,0.00044657,120]
[330039183,1718956800108,-564.1,0.00044657,120]
[330039184,1718956800148,-868.95,0.00044657,120]
[330039185,1718956800188,-500.0,0.00044657,120]
[330039186,1718956800226,-500.0,0.00044657,120]
[330039187,1718956800264,-518.06242286,0.00044657,120]
[330039188,1718956800305,-683.29,0.00044657,120]
[330039189,1718956800350,-500.0,0.00044657,120]
[330039190,1718956800389,-627.84,0.00044657,120]
[330039191,1718956800429,-500.0,0.00044657,120]
[330039192,1718956800468,-622.75402047,0.00044657,120]
[330039193,1718956800509,-500.0,0.00044657,120]
[330039194,1718956800548,-511.82,0.00044657,120]
[330039195,1718956800588,-867.89,0.00044657,120]
[330039196,1718956800627,-506.27,0.00044657,120]
[330039197,1718956800665,-500.0,0.00044657,120]
[330039198,1718956800722,-854.92,0.00044657,120]
[330039199,1718956800760,-500.0,0.00044657,120]
[330039200,1718956800798,-500.0,0.00044657,120]
[330039201,1718956800836,-586.31,0.00044657,120]
[330039202,1718956800879,-685.69,0.00044657,120]
[330039203,1718956800917,-500.0,0.00044657,120]
[330039204,1718956800959,-748.3,0.00044657,120]
[330039205,1718956800999,-794.68,0.00044657,120]
[330039206,1718956801039,-623.49463065,0.00044657,120]
[330039207,1718956801079,-500.0,0.00044657,120]
[330039208,1718956801118,-500.0,0.00044657,120]
[330039209,1718956801157,-532.7,0.00044657,120]
[330039210,1718956801209,-725.95,0.00044657,120]
[330039211,1718956801253,-617.01,0.00044657,120]
[330039212,1718956801292,-500.0,0.00044657,120]
[330039213,1718956801331,-820.21,0.00044657,120]
[330039214,1718956801370,-937.52,0.00044657,120]
[330039215,1718956801409,-719.64,0.00044657,120]
[330039216,1718956801447,-506.86,0.00044657,120]
[330039217,1718956801487,-500.0,0.00044657,120]
[330039218,1718956801527,-839.9,0.00044657,120]
[330039219,1718956801566,-1103.6,0.00044657,120]
[330039220,1718956801605,-500.0,0.00044657,120]
[330039221,1718956801643,-530.78,0.00044657,120]
[330039222,1718956801681,-604.54,0.00044657,120]
[330039223,1718956801726,-697.14,0.00044657,120]
[330039224,1718956801980,-494.32654474,0.00044657,120]
[330039225,1718956802019,-500.0,0.00044657,120]
[330039226,1718956802057,-500.0,0.00044657,120]
[330039227,1718956802095,-841.77,0.00044657,120]
[330039228,1718956802133,-500.0,0.00044657,120]
[330039229,1718956802169,-520.78,0.00044657,120]
[330039230,1718956802210,-525.07,0.00044657,120]
[330039231,1718956802248,-500.0,0.00044657,120]
[330039232,1718956802284,-500.0,0.00044657,120]
[330039233,1718956802322,-500.0,0.00044657,120]
[330039234,1718956802357,-577.24,0.00044657,120]
[330039235,1718956802395,-500.0,0.00044657,120]
[330039236,1718956802431,-869.8,0.00044657,120]
[330039237,1718956802468,-1432.67,0.00044657,120]
[330039238,1718956802507,-500.0,0.00044657,120]
[330039239,1718956802546,-500.0,0.00044657,120]
[330039240,1718956802583,-560.61,0.00044657,120]
[330039241,1718956802620,-853.86,0.00044657,120]
[330039242,1718956802656,-500.0,0.00044657,120]
[330039243,1718956802703,-820.38,0.00044657,120]
[330039244,1718956802738,-803.6,0.00044657,120]
[330039245,1718956802775,-652.24,0.00044657,120]
[330039246,1718956802810,-561.06,0.00044657,120]
[330039247,1718956802846,-714.43,0.00044657,120]
[330039248,1718956802885,-592.38,0.00044657,120]
[330039249,1718956802922,-500.0,0.00044657,120]
[330039250,1718956802961,-511.62,0.00044657,120]
[330039251,1718956802998,-597.98,0.00044657,120]
[330039252,1718956803038,-977.06,0.00044657,120]
[330039253,1718956803078,-745.53,0.00044657,120]
[330039254,1718956803117,-525.02,0.00044657,120]
[330039255,1718956803154,-500.0,0.00044657,120]
[330039256,1718956803195,-533.66,0.00044657,120]
[330039257,1718956803239,-1515.35,0.00044657,120]
[330039258,1718956803277,-760.35,0.00044657,120]
[330039259,1718956803317,-614.66,0.00044657,120]
[330039260,1718956803356,-534.8815748,0.00044657,120]
[330039261,1718956803393,-500.0,0.00044657,120]
[330039262,1718956803429,-500.0,0.00044657,120]
[330039263,1718956803467,-734.54,0.00044657,120]
[330039264,1718956803505,-748.46,0.00044657,120]
[330039265,1718956803543,-500.0,0.00044657,120]
[330039266,1718956803583,-612.85,0.00044657,120]
[330039267,1718956803620,-531.03,0.00044657,120]
[330039268,1718956803655,-500.0,0.00044657,120]
[330039269,1718956803702,-500.0,0.00044657,120]